[Event "8th Brazilian Open SESC Caioba 2024"]
[Site "Caioba"]
[Date "2024.06.26"]
[Round "4.1"]
[White "Ribeiro, Matheus Mendes Domin"]
[Black "Mekhitarian, Krikor Sevag"]
[Result "0-1"]
[ECO "A17"]
[WhiteElo "2241"]
[BlackElo "2554"]
[Annotator "TA"]
[PlyCount "72"]
[EventDate "2024.06.15"]
[EventCountry "BRA"]
[SourceTitle "playchess.com"]
[Source "ChessBase"]
[SourceQuality "1"]
[TimeControl "5400+30"]

{[%evp 9,71,8,6,0,15,6,11,0,0,1,0,0,9,0,-7,0,-4,-27,-29,-117,-122,-114,-125,-147,-139,-123,-135,-137,-148,-138,-135,-152,-104,-163,-177,-766,-502,-809,-810,-804,-804,-829,-805,-1001,-997,-1163,-1191,-1100,-994,-989,-992,-991,-985,-1487,-1237,-1258,-1244,-1219,-1218,-1807,-1735,-29978,-29977,-29999]} 1. c4 {[%emt 0:02:26]} e6 {[%emt 0:00:09]} 2. Nf3 {[%emt 0:00:55]} d5 {[%emt 0:00:07]} 3. e3 {[%emt 0:00:29]} Nf6 {[%emt 0:00:16]} 4. Nc3 {[%emt 0:00:48]} Bd6 {[%emt 0:00:26]} 5. b3 {[%emt 0:04:15]} O-O {[%emt 0:00:15]} 6. Bb2 {[%emt 0:01:31]} Re8 {[%emt 0:00:19]} 7. d4 {[%emt 0:05:25]} b6 {[%emt 0:00:29]} 8. Be2 {[%emt 0:03:50] The position is equal.} Bb7 {[%emt 0:00:36]} 9. O-O {[%emt 0:00:59]} Nbd7 {[%emt 0:01:26]} 10. Rc1 {[%emt 0:01:38]} a6 {[%emt 0:00:08]} 11. Qc2 {[%emt 0:03:31]} dxc4 {[%emt 0:02:11]} 12. bxc4 {[%emt 0:02:25]} c5 {[%emt 0:01:38]} 13. d5 {[%emt 0:04:08]} exd5 {[%emt 0:00:39]} 14. cxd5 {[%emt 0:02:09] [#] Black keeps a firm grip on the game.} (14. Nxd5 $11 {remains equal.} Bxd5 (14... Nxd5 15. cxd5 Rb8 16. Bd3 $14) 15. cxd5) 14... b5 $1 $17 {[%emt 0:00:31]} ({Worse is} 14... Nxd5 15. Nxd5 Bxd5 16. Qd2 Bxf3 17. Bxf3 $16) 15. Rfd1 {[%emt 0:05:01]} Qe7 {[%emt 0:26:47]} 16. Qf5 {[%emt 0:09:23]} c4 {[%emt 0:08:50]} 17. Nd4 {[%emt 0:06:01]} b4 {[%emt 0:22:23]} 18. Nc6 {[%emt 0:06:57]} Qf8 {[%emt 0:05:10]} 19. Na4 {[%emt 0:06:26]} c3 {[%emt 0:00:20]} 20. Ba1 {[%emt 0:00:31]} a5 {[%emt 0:01:49]} ({Better is} 20... g6 21. Qh3 Rac8) 21. Bb5 {[%emt 0:03:51]} (21. Bxc3 $17 {was worth a try.} bxc3 22. Qb1) 21... Bc8 $19 {[%emt 0:06:07] ...Nc5 would now be deadly.} 22. Qg5 $2 {[%emt 0:09:22]} (22. h3) 22... Re4 {[%emt 0:06:16] aiming for ...h6.} 23. Rd4 {[%emt 0:14:50]} (23. f4 $142 Rxe3 24. Qh4) 23... h6 {[%emt 0:01:23]} 24. Qf5 {[%emt 0:00:31]} Nc5 {[%emt 0:04:05]} 25. Qxe4 {[%emt 0:01:35]} Ncxe4 {[%emt 0:01:13]} 26. Nb6 {[%emt 0:00:05] [#]} Ba6 $1 {[%emt 0:00:44]} 27. Nxa8 {[%emt 0:00:12]} (27. a4 Bxb5) 27... Bxb5 {[%emt 0:00:43]} 28. Nb6 {[%emt 0:00:21]} Bc5 {[%emt 0:01:01]} 29. Nd7 {[%emt 0:00:39]} Nxd7 {[%emt 0:02:05]} 30. Rxe4 {[%emt 0:00:02]} Nf6 {[%emt 0:00:29][%csl LRd5,LRe4]} 31. Re5 {[%emt 0:00:36]} Bxc6 {[%emt 0:00:56]} 32. dxc6 {[%emt 0:00:01]} Qd6 {[%emt 0:00:05][%csl LRc6,LRe5]} 33. Rf5 {[%emt 0:00:54]} Qxc6 {[%emt 0:00:07]} 34. Bxc3 {[%emt 0:00:01]} bxc3 {[%emt 0:00:06]} 35. Rxc3 {[%emt 0:00:13]} Qd7 {[%emt 0:00:16][%cal Rd7d1]} 36. Rfxc5 {[%emt 0:00:27]} Qd1# {[%emt 0:00:06] Weighted Error Value: White=1.10/Black=0.29 (precise) .  Mistake:       	White=4     	Black=1      Inaccurate:     	---       	Black=1      OK:         	White=6     	Black=11     Strong:       	---       	Black=1} 0-1

[Event "8th Brazilian Open SESC Caioba 2024"]
[Site "Caioba"]
[Date "2024.06.26"]
[Round "4.3"]
[White "Di Berardino, Diego Rafael"]
[Black "Umetsubo, Cesar Hidemitsu"]
[Result "1/2-1/2"]
[ECO "D35"]
[WhiteElo "2473"]
[BlackElo "2362"]
[Annotator "TA"]
[PlyCount "53"]
[EventDate "2024.06.15"]
[EventCountry "BRA"]
[SourceTitle "playchess.com"]
[Source "ChessBase"]
[SourceQuality "1"]
[TimeControl "5400+30"]

{[%evp 15,53,8,20,10,18,11,17,21,27,16,25,19,18,20,27,30,28,15,14,0,9,0,17,14,12,0,0,13,16,4,14,12,7,11,14,8,19,9,12,16]} 1. d4 {[%emt 0:00:59]} d5 {[%emt 0:00:19]} 2. c4 {[%emt 0:00:08]} e6 {[%emt 0:00:07]} 3. Nc3 {[%emt 0:00:33]} Nf6 {[%emt 0:00:22]} 4. cxd5 {[%emt 0:00:28]} exd5 {[%emt 0:00:08]} 5. Bg5 {[%emt 0:00:06]} c6 {[%emt 0:00:23]} 6. e3 {[%emt 0:00:49]} h6 {[%emt 0:00:14]} 7. Bh4 {[%emt 0:00:12]} Be7 {[%emt 0:00:26]} 8. Bd3 {[%emt 0:00:56]} O-O {[%emt 0:01:00]} 9. Nge2 {[%emt 0:01:20][%cal Bg1e2,Be2c1,Bc1b3][%mdl 32]} Re8 {[%emt 0:05:33]} 10. O-O {[%emt 0:04:12]} Nh5 {[%emt 0:00:32]} 11. Bxe7 {[%emt 0:00:42]} Qxe7 {[%emt 0:00:03]} 12. Qd2 {[%emt 0:03:41]} Nd7 {[%emt 0:02:18][%cal Bb8d7,Bd7f8,Bf8e6][%mdl 32]} 13. Rae1 {[%emt 0:02:04]} Nf8 {[%emt 0:02:10]} 14. Nc1 {[%emt 0:02:48]} Nf6 {[%emt 0:09:15]} 15. f3 {[%emt 0:03:55]} Ne6 {[%emt 0:00:17]} 16. Nb3 {[%emt 0:17:05]} a5 {[%emt 0:04:50] The position is equal.} 17. a4 {[%emt 0:06:45]} Qb4 {[%emt 0:04:36]} 18. Nc1 {[%emt 0:00:28]} Bd7 {[%emt 0:02:10]} 19. Bb1 {[%emt 0:00:42]} c5 {[%emt 0:06:22][%cal Rc5d4]} 20. Nd3 {[%emt 0:06:33]} Qb6 {[%emt 0:00:36]} 21. Nxc5 {[%emt 0:10:49]} Nxc5 {[%emt 0:00:18]} 22. dxc5 {[%emt 0:00:02]} Qxc5 {[%emt 0:00:11]} 23. Qd4 {[%emt 0:02:57]} Qxd4 {[%emt 0:04:15]} 24. exd4 {[%emt 0:00:06]} Rxe1 {[%emt 0:00:33]} 25. Rxe1 {[%emt 0:00:04]} Re8 {[%emt 0:00:11]} 26. Rc1 {[%emt 0:02:06]} Kf8 {[%emt 0:00:43]} 27. Bd3 {[%emt 0:33:30] A rather calm draw.   Weighted Error Value: White=0.04 (flawless) /Black=0.05 (flawless) .  OK:         	White=7     	Black=3      Best:        	White=1     	---} 1/2-1/2

[Event "8th Brazilian Open SESC Caioba 2024"]
[Site "Caioba"]
[Date "2024.06.26"]
[Round "4.4"]
[White "Cubas, Jose Fernando"]
[Black "Hoffman, Alejandro"]
[Result "1-0"]
[ECO "C41"]
[WhiteElo "2417"]
[BlackElo "2355"]
[Annotator "RC"]
[PlyCount "93"]
[EventDate "2024.06.15"]
[EventCountry "BRA"]
[SourceTitle "playchess.com"]
[Source "ChessBase"]
[SourceQuality "1"]
[TimeControl "5400+30"]

1. e4 {[%emt 0:00:02]} d6 {[%emt 0:00:08]} 2. d4 {[%emt 0:00:04]} Nf6 {[%emt 0:00:08]} 3. Nc3 {[%emt 0:00:14]} e5 {[%emt 0:00:12]} 4. Nf3 {[%emt 0:00:23]} Nbd7 {[%emt 0:00:45]} 5. Bc4 {[%emt 0:00:59]} Be7 {[%emt 0:00:08]} 6. O-O {[%emt 0:00:09]} Nb6 {[%emt 0:00:30]} 7. Be2 {[%emt 0:00:43]} exd4 {[%emt 0:00:08]} 8. Nxd4 {[%emt 0:00:24]} O-O {[%emt 0:00:09]} 9. Re1 {[%emt 0:01:27]} Re8 {[%emt 0:00:15]} 10. Bf1 {[%emt 0:03:51]} c6 {[%emt 0:00:12]} 11. Bg5 {[%emt 0:03:07]} h6 {[%emt 0:15:53]} 12. Bh4 {[%emt 0:04:29]} a5 {[%emt 0:00:16]} 13. a4 {[%emt 0:01:44]} Bf8 {[%emt 0:08:39]} 14. h3 {[%emt 0:07:22]} Nbd7 {[%emt 0:08:11]} 15. Qd2 {[%emt 0:07:05]} Nc5 {[%emt 0:06:44]} 16. f3 {[%emt 0:04:52]} Bd7 {[%emt 0:04:41]} 17. Bf2 {[%emt 0:09:04]} Qc7 {[%emt 0:03:17]} 18. Bc4 {[%emt 0:03:40]} Rad8 {[%emt 0:01:06]} 19. Rad1 {[%emt 0:01:39]} Bc8 {[%emt 0:02:56]} 20. Ba2 {[%emt 0:01:57]} Na6 {[%emt 0:06:18]} 21. Qf4 {[%emt 0:06:12]} Nc5 {[%emt 0:09:04]} 22. Re2 {[%emt 0:15:07]} Be6 {[%emt 0:07:59]} 23. Nxe6 {[%emt 0:06:33]} Nxe6 {[%emt 0:00:11]} 24. Qh2 {[%emt 0:01:30]} Nd7 {[%emt 0:03:32]} 25. Red2 {[%emt 0:01:22]} Ndc5 {[%emt 0:04:12]} 26. Bc4 {[%emt 0:03:53]} Be7 {[%emt 0:05:23]} 27. Kh1 {[%emt 0:10:31]} Qb6 {[%emt 0:09:03]} 28. b3 {[%emt 0:00:12]} Qb4 {[%emt 0:01:16]} 29. Nb1 {[%emt 0:03:29]} Bg5 {[%emt 0:00:57]} 30. c3 {[%emt 0:00:58]} Qb6 {[%emt 0:00:05]} 31. Rxd6 {[%emt 0:01:01]} Rxd6 {[%emt 0:00:13]} 32. Rxd6 {[%emt 0:00:01]} Qc7 {[%emt 0:03:06]} 33. Rd1 {[%emt 0:01:27]} Bf4 {[%emt 0:00:08]} 34. Qg1 {[%emt 0:00:41]} b6 {[%emt 0:00:47]} 35. Na3 {[%emt 0:00:40]} Qe7 {[%emt 0:00:51]} 36. Nc2 {[%emt 0:00:02]} Be5 {[%emt 0:00:26]} 37. Nd4 {[%emt 0:00:11]} Qf6 {[%emt 0:00:17]} 38. Nxc6 {[%emt 0:01:17]} Bxc3 {[%emt 0:00:17]} 39. Nd4 {[%emt 0:00:39]} Ng5 {[%emt 0:00:45]} 40. Rc1 {[%emt 0:00:54]} Ngxe4 {[%emt 0:00:20]} 41. fxe4 {[%emt 0:00:06]} Nxe4 {[%emt 0:00:04]} 42. Nf3 {[%emt 0:00:17]} Qf4 {[%emt 0:00:28]} 43. Rd1 {[%emt 0:00:51]} g5 {[%emt 0:00:44]} 44. Bd3 {[%emt 0:00:47]} Nxf2+ {[%emt 0:01:15]} 45. Qxf2 {[%emt 0:00:02]} Re3 {[%emt 0:00:19]} 46. Bc4 {[%emt 0:00:42]} Be5 {[%emt 0:00:13]} 47. Re1 {[%emt 0:00:28]} 1-0

[Event "8th Brazilian Open SESC Caioba 2024"]
[Site "Caioba"]
[Date "2024.06.26"]
[Round "4.5"]
[White "Matsuura, Everaldo"]
[Black "Pinero Rodriguez, Carlos Jose"]
[Result "0-1"]
[ECO "B42"]
[WhiteElo "2380"]
[BlackElo "2284"]
[Annotator "RC"]
[PlyCount "52"]
[EventDate "2024.06.15"]
[EventCountry "BRA"]
[SourceTitle "playchess.com"]
[Source "ChessBase"]
[SourceQuality "1"]
[TimeControl "5400+30"]

1. e4 {[%emt 0:00:56]} c5 {[%emt 0:00:40]} 2. Nf3 {[%emt 0:00:15]} e6 {[%emt 0:00:49]} 3. d4 {[%emt 0:00:15]} cxd4 {[%emt 0:00:21]} 4. Nxd4 {[%emt 0:00:09]} a6 {[%emt 0:00:32]} 5. Bd3 {[%emt 0:00:12]} Qc7 {[%emt 0:01:48]} 6. O-O {[%emt 0:00:26]} Nf6 {[%emt 0:01:00]} 7. Qe2 {[%emt 0:00:50]} d6 {[%emt 0:01:36]} 8. c4 {[%emt 0:00:20]} Be7 {[%emt 0:01:02]} 9. Nc3 {[%emt 0:00:26]} O-O {[%emt 0:00:29]} 10. Kh1 {[%emt 0:00:45]} Nbd7 {[%emt 0:01:25]} 11. f4 {[%emt 0:00:27]} b6 {[%emt 0:00:16]} 12. Bd2 {[%emt 0:00:16]} Bb7 {[%emt 0:00:07]} 13. Rae1 {[%emt 0:00:16]} Rad8 {[%emt 0:04:59]} 14. b3 {[%emt 0:01:05]} g6 {[%emt 0:04:29]} 15. Bb1 {[%emt 0:01:37]} Rfe8 {[%emt 0:04:27]} 16. Qf3 {[%emt 0:04:23]} Bf8 {[%emt 0:01:07]} 17. Qh3 {[%emt 0:02:05]} Bg7 {[%emt 0:02:07]} 18. Nf3 {[%emt 0:09:02]} Qb8 {[%emt 0:16:41]} 19. Rf2 {[%emt 0:18:29]} Qa8 {[%emt 0:11:26]} 20. e5 {[%emt 0:18:10]} Nh5 {[%emt 0:07:34]} 21. Ne4 {[%emt 0:17:37]} dxe5 {[%emt 0:05:35]} 22. fxe5 {[%emt 0:01:09]} Nxe5 {[%emt 0:01:45]} 23. Nxe5 {[%emt 0:00:34]} Bxe5 {[%emt 0:00:04]} 24. Ng5 {[%emt 0:02:24]} Rxd2 {[%emt 0:01:15]} 25. Rxd2 {[%emt 0:00:58]} Bf4 {[%emt 0:00:10]} 26. Rd7 {[%emt 0:10:52]} Bxg5 {[%emt 0:00:59]} 0-1

[Event "8th Brazilian Open SESC Caioba 2024"]
[Site "Caioba"]
[Date "2024.06.26"]
[Round "4.6"]
[White "Hernandez Guerrero, Gilberto"]
[Black "Aranha Filho, Alvaro Z."]
[Result "1/2-1/2"]
[ECO "B30"]
[WhiteElo "2506"]
[BlackElo "2200"]
[Annotator "TA"]
[PlyCount "66"]
[EventDate "2024.06.15"]
[EventCountry "BRA"]
[SourceTitle "playchess.com"]
[Source "ChessBase"]
[SourceQuality "1"]
[TimeControl "5400+30"]

{[%evp 9,66,5,18,-3,6,0,0,0,0,-5,0,-29,-34,-35,-25,-31,-23,-43,0,0,0,0,34,21,23,13,81,82,85,73,83,59,83,79,97,-25,71,7,5,-41,-32,-24,-33,-27,-21,-41,0,0,-6,-63,-55,-112,-87,-631,0,-65,-68,-613,-613]} 1. e4 {[%emt 0:00:08]} c5 {[%emt 0:08:59]} 2. Nf3 {[%emt 0:00:35]} Nc6 {[%emt 0:00:10]} 3. Bb5 {[%emt 0:00:34]} Nf6 {[%emt 0:00:07]} 4. Nc3 {[%emt 0:01:49]} Qc7 {[%emt 0:00:06]} 5. a4 {[%emt 0:01:34]} Nd4 {[%emt 0:03:38]} 6. d3 {[%emt 0:00:46]} e6 {[%emt 0:06:30]} 7. Be3 {[%emt 0:09:05]} a6 {[%emt 1:14:30]} 8. Bc4 {[%emt 0:00:09] The position is equal.} Nc6 {[%emt 0:00:00]} 9. O-O {[%emt 0:11:28]} Be7 {[%emt 0:00:00]} 10. Qd2 {[%emt 0:01:07]} O-O {[%emt 0:00:00]} 11. Bf4 {[%emt 0:01:01]} d6 {[%emt 0:00:00]} 12. h3 {[%emt 0:00:22]} h6 {[%emt 0:00:00]} 13. Rae1 {[%emt 0:07:40]} Ne5 {[%emt 0:00:00]} 14. Nxe5 {[%emt 0:04:14]} dxe5 {[%emt 0:00:00]} 15. Be3 {[%emt 0:00:08]} Bd7 {[%emt 0:00:00]} 16. f4 {[%emt 0:01:12]} Rad8 {[%emt 0:00:00]} 17. Qf2 {[%emt 0:11:31]} Kh7 {[%emt 0:00:00]} (17... Nh5 $11) 18. fxe5 $16 {[%emt 0:03:02]} Qxe5 {[%emt 0:00:00]} 19. d4 $1 {[%emt 0:01:05]} cxd4 {[%emt 0:00:00]} 20. Bxd4 {[%emt 0:00:08]} Qc7 {[%emt 0:00:00] [#]} 21. Bd3 {[%emt 0:02:09] Strongly threatening e5+.} Kh8 {[%emt 0:00:00] [#]} 22. Kh1 {[%emt 0:13:29]} (22. e5 $1 $16 {[%cal Re5f6]} Nh7 23. Bb6) 22... Rc8 {[%emt 0:01:03]} (22... Bc6 $11) 23. Qf3 {[%emt 0:08:45]} (23. e5 $16 Ng8 24. Rd1) 23... Bc6 $11 {[%emt 0:00:45]} 24. Qe3 {[%emt 0:00:17]} (24. Bxf6 $11 Bxf6 25. Nd5 exd5 26. exd5) 24... e5 $36 {[%emt 0:03:46][%mdl 2048] Black has some pressure.} 25. Bb6 {[%emt 0:00:07]} Qd6 {[%emt 0:00:31]} 26. a5 {[%emt 0:03:47]} Nd7 {[%emt 0:00:25]} 27. Ba7 {[%emt 0:00:31]} Bg5 {[%emt 0:01:39]} 28. Qe2 {[%emt 0:04:38]} Qb4 {[%emt 0:01:29]} 29. Bc4 {[%emt 0:13:39]} (29. Ra1 $11) 29... Qxb2 {[%emt 0:01:22]} 30. Rf3 {[%emt 0:00:30]} (30. Nd5 $15) 30... Qb4 {[%emt 0:00:30]} 31. Rff1 $2 {[%emt 0:00:30][%mdl 8192]} Qb2 $2 ({Black should try} 31... Qxc3 $19 32. Bg1 Qxa5) 32. Nd5 {[%emt 0:00:30]} ({Better is} 32. Rf3 $1 $11) 32... Bxd5 33. Bd3 {[%emt 0:00:30][%mdl 8192]} (33. exd5 $15 Qb4 34. Bd3) 33... Bc6 {[%emt 0:00:43][%mdl 32768] Weighted Error Value: White=0.62/Black=0.35.  Loses game:     	White=2     	---        Missed win:     	---       	Black=1      Mistake:       	White=6     	Black=2      Inaccurate:     	White=1     	Black=3      OK:         	White=8     	Black=12     Best:        	White=2     	Black=1      Strong:       	White=1     	---       . An unexpected result.} 1/2-1/2

[Event "8th Brazilian Open SESC Caioba 2024"]
[Site "Caioba"]
[Date "2024.06.26"]
[Round "4.7"]
[White "Delgado Ramirez, Neuris"]
[Black "Casalaspro, Mathias Andre"]
[Result "1-0"]
[ECO "B10"]
[WhiteElo "2487"]
[BlackElo "2172"]
[Annotator "TA"]
[PlyCount "53"]
[EventDate "2024.06.15"]
[EventCountry "BRA"]
[SourceTitle "playchess.com"]
[Source "ChessBase"]
[SourceQuality "1"]
[TimeControl "5400+30"]

{[%evp 9,53,-16,19,14,40,18,44,28,29,37,52,52,55,49,60,25,41,37,55,54,74,71,65,60,107,104,101,109,117,95,128,98,155,152,157,145,168,163,163,160,164,160,276,278,393,384]} 1. e4 {[%emt 0:22:14]} c6 {[%emt 0:02:51]} 2. d3 {[%emt 0:02:44]} d5 {[%emt 0:00:15]} 3. Nd2 {[%emt 0:00:30]} g6 {[%emt 0:00:52]} 4. Ngf3 {[%emt 0:00:21]} Bg7 {[%emt 0:00:06]} 5. Qe2 {[%emt 0:00:44]} dxe4 {[%emt 0:03:00]} 6. dxe4 {[%emt 0:00:25]} Na6 {[%emt 0:05:17]} 7. Nb3 {[%emt 0:01:36]} Qc7 {[%emt 0:03:56]} 8. c3 {[%emt 0:03:55] White is slightly better.} e5 {[%emt 0:02:50]} 9. Qc2 {[%emt 0:01:14]} Nf6 {[%emt 0:04:01]} 10. Bxa6 {[%emt 0:02:36]} bxa6 {[%emt 0:00:12]} 11. Be3 {[%emt 0:00:05]} O-O {[%emt 0:05:04]} 12. Bc5 {[%emt 0:01:28]} Rd8 {[%emt 0:00:39]} 13. Bb4 {[%emt 0:00:04]} Nd7 {[%emt 0:08:24]} 14. Rd1 {[%emt 0:00:51]} Nb6 {[%emt 0:00:33]} 15. Rxd8+ {[%emt 0:00:26]} Qxd8 {[%emt 0:00:19]} 16. O-O {[%emt 0:00:21]} Nc4 {[%emt 0:06:15]} (16... Bg4 $14) 17. Qe2 {[%emt 0:00:34]} Nb6 {[%emt 0:03:47]} 18. Rd1 $40 {[%emt 0:01:36][%mdl 128] White attacks with force.} Qe8 {[%emt 0:00:40]} 19. Nc5 {[%emt 0:01:50] White has more active pieces.} Bg4 {[%emt 0:01:54]} 20. Nxa6 {[%emt 0:03:17] [#] Threatens to win with Nc7. A dynamic duo of knights.} Rd8 {[%emt 0:00:53]} ({Black should try} 20... Qc8) 21. h3 $16 {[%emt 0:01:22]} Bxf3 {[%emt 0:01:41]} 22. Qxf3 {[%emt 0:01:16]} Nc4 {[%emt 0:00:11]} 23. b3 {[%emt 0:02:13]} Nb2 {[%emt 0:00:28]} 24. Rxd8 {[%emt 0:00:50]} Qxd8 {[%emt 0:00:07]} 25. Qe2 {[%emt 0:00:20]} Nd1 {[%emt 0:03:01]} (25... Nd3 $16 26. Qd1 Bf6) 26. Nc5 $18 {[%emt 0:08:11] And now Qc2 would win.} Bf8 {[%emt 0:01:59] [#]} (26... a5 {is a better defense.}) 27. Qc2 $1 {[%emt 0:00:10] Weighted Error Value: White=0.07 (flawless) /Black=0.28 (precise) .  Mistake:       	---       	Black=4      Inaccurate:     	White=1     	Black=3      OK:         	White=10    	Black=4      Strong:       	White=1     	---} 1-0

[Event "8th Brazilian Open SESC Caioba 2024"]
[Site "Caioba"]
[Date "2024.06.26"]
[Round "4.8"]
[White "Amura, Claudia"]
[Black "Santiago, Yago De Moura"]
[Result "0-1"]
[ECO "A80"]
[WhiteElo "2167"]
[BlackElo "2462"]
[Annotator "TA"]
[PlyCount "48"]
[EventDate "2024.06.15"]
[EventCountry "BRA"]
[SourceTitle "playchess.com"]
[Source "ChessBase"]
[SourceQuality "1"]
[TimeControl "5400+30"]

{[%evp 9,48,16,24,14,9,7,15,0,0,0,0,0,-7,-107,-108,-201,-196,-206,-214,-334,-305,-304,-316,-396,-296,-256,-195,-219,-198,-177,-176,-154,-146,-157,-146,-131,-144,-205,-197,-526,-532]} 1. d4 {[%emt 0:00:25]} e6 {[%emt 0:00:23]} 2. Nf3 {[%emt 0:00:39]} f5 {[%emt 0:00:13]} 3. Bf4 {[%emt 0:00:45]} Nf6 {[%emt 0:00:11]} 4. e3 {[%emt 0:00:24]} Nc6 {[%emt 0:00:16]} 5. h3 {[%emt 0:00:50]} b6 {[%emt 0:00:25]} 6. a3 {[%emt 0:07:33]} Bd6 {[%emt 0:01:01]} 7. Bd3 {[%emt 0:06:39]} Bb7 {[%emt 0:03:02]} 8. c4 {[%emt 0:05:11][%cal Od4d5] The position is equal.} Bxf4 {[%emt 0:01:45]} 9. exf4 {[%emt 0:00:05]} Ne7 {[%emt 0:00:47]} 10. Qe2 {[%emt 0:14:10]} c5 {[%emt 0:06:27]} 11. d5 {[%emt 0:07:25]} exd5 $17 {[%emt 0:01:14]} 12. Bxf5 {[%emt 0:00:04]} (12. O-O $17) 12... dxc4 $19 {[%emt 0:12:38] [#] ...Bxf3 is the strong threat.} 13. Nbd2 {[%emt 0:02:17]} b5 {[%emt 0:08:19] And now ...0-0 would win.} 14. Ne4 {[%emt 0:18:23]} (14. Bc2 $142) 14... O-O {[%emt 0:06:10]} 15. Nxf6+ {[%emt 0:02:01]} Rxf6 {[%emt 0:00:32]} (15... gxf6 16. Bc2 $19) 16. Bg4 {[%emt 0:00:17]} Nd5 {[%emt 0:06:00]} (16... Rxf4 17. O-O-O Bxf3 18. Bxf3 $17) 17. g3 {[%emt 0:07:52]} Qa5+ {[%emt 0:15:56]} 18. Kf1 {[%emt 0:02:09]} Raf8 {[%emt 0:03:14][%cal Od5f4] Threatens to win with ...Nxf4!} 19. Rh2 {[%emt 0:22:51][%cal Of3e5]} c3 {[%emt 0:02:35]} 20. Ne5 {[%emt 0:00:00]} Nb6 {[%emt 0:06:28]} 21. Bxd7 {[%emt 0:00:00]} b4 $36 {[%emt 0:05:36][%mdl 2048] Black has strong initiative.} ({Stronger than} 21... Nxd7 22. Nxd7 Bd5 23. Nxf6+ gxf6 24. Kg1 $11) 22. bxc3 {[%emt 0:00:00]} bxc3 {[%emt 0:01:58]} ({Weaker is} 22... bxa3 23. Qa2+ Kh8 24. Qb3 $14 (24. Qxa3 Qxa3 25. Rxa3 Nxd7 $11)) 23. Qa2+ {[%emt 0:00:00]} (23. Kg1 $17) 23... Bd5 {[%emt 0:00:40]} 24. Qc2 {[%emt 0:00:00] [#]} (24. Qe2 {was the crucial defense.}) 24... Nxd7 {[%emt 0:00:20] Black took control after the opening.   Weighted Error Value: White=0.48/Black=0.12 (very precise) .  Mistake:       	White=5     	---        OK:         	White=4     	Black=7      Best:        	White=4     	Black=3} 0-1